[Event "*** Biggest EVER Titled Tuesday"]
[Site "Chess.com"]
[Date "2018.04.17"]
[Round "4"]
[White "Jbd735"]
[Black "cheese111"]
[Result "1-0"]
[WhiteElo "2292"]
[BlackElo "2398"]
[TimeControl "180+2"]
[EndTime "13:54:55 PDT"]
[Termination "Jbd735 won by resignation"]

1. d4 {[%clk 0:03:01.9]} 1... d5 {[%clk 0:02:58.8]} 2. Nf3 {[%clk 0:03:02.5]}
2... Nf6 {[%clk 0:03:00.1]} 3. c3 {[%clk 0:03:02.9]} 3... e6 {[%clk 0:03:00.6]}
4. Bg5 {[%clk 0:03:00.2]} 4... Be7 {[%clk 0:03:02.1]} 5. e3 {[%clk 0:02:59.4]}
5... Nbd7 {[%clk 0:03:02.4]} 6. Bd3 {[%clk 0:03:00]} 6... c5 {[%clk 0:03:01.8]}
7. Nbd2 {[%clk 0:03:00.2]} 7... b6 {[%clk 0:03:01.8]} 8. Qe2 {[%clk 0:02:55.8]}
8... Bb7 {[%clk 0:03:02.8]} 9. O-O {[%clk 0:02:16.3]} 9... O-O {[%clk
0:02:35.9]} 10. Ne5 {[%clk 0:01:50.8]} 10... Nxe5 {[%clk 0:02:36.8]} 11. dxe5
{[%clk 0:01:51.1]} 11... Ne4 {[%clk 0:02:38.4]} 12. Bxe7 {[%clk 0:01:49.5]}
12... Qxe7 {[%clk 0:02:40.3]} 13. f4 {[%clk 0:01:14.3]} 13... Nxd2 {[%clk
0:02:28.3]} 14. Qxd2 {[%clk 0:01:14.7]} 14... f6 {[%clk 0:02:29.8]} 15. exf6
{[%clk 0:01:14]} 15... Qxf6 {[%clk 0:02:31.1]} 16. Qe2 {[%clk 0:00:57]} 16...
Rad8 {[%clk 0:01:21.6]} 17. Rae1 {[%clk 0:00:33.1]} 17... e5 {[%clk 0:01:11.1]}
18. fxe5 {[%clk 0:00:28.4]} 18... Qxe5 {[%clk 0:01:11.4]} 19. Rxf8+ {[%clk
0:00:24.9]} 19... Rxf8 {[%clk 0:01:13.3]} 20. e4 {[%clk 0:00:22.2]} 20... d4
{[%clk 0:01:01.5]} 21. c4 {[%clk 0:00:14.6]} 21... Bc8 {[%clk 0:00:49.6]} 22.
Rf1 {[%clk 0:00:13.3]} 22... Be6 {[%clk 0:00:44.4]} 23. Rxf8+ {[%clk 0:00:13.1]}
23... Kxf8 {[%clk 0:00:46.3]} 24. Qf2+ {[%clk 0:00:12.7]} 24... Kg8 {[%clk
0:00:30.6]} 25. Qh4 {[%clk 0:00:11.8]} 25... Qf6 {[%clk 0:00:20.2]} 26. Qxf6
{[%clk 0:00:08.7]} 26... gxf6 {[%clk 0:00:21.2]} 27. Kf2 {[%clk 0:00:09.3]}
27... Kf7 {[%clk 0:00:22.3]} 28. Kf3 {[%clk 0:00:10.3]} 28... Ke7 {[%clk
0:00:23]} 29. Kf4 {[%clk 0:00:11.3]} 29... Kd6 {[%clk 0:00:24.2]} 30. g4 {[%clk
0:00:09.7]} 30... h6 {[%clk 0:00:25.1]} 31. h3 {[%clk 0:00:09.4]} 31... Bd7
{[%clk 0:00:25.7]} 32. b3 {[%clk 0:00:09.6]} 32... Ke6 {[%clk 0:00:26.6]} 33.
Bc2 {[%clk 0:00:08.9]} 33... b5 {[%clk 0:00:27]} 34. Bd3 {[%clk 0:00:08.6]}
34... a6 {[%clk 0:00:28.3]} 35. Be2 {[%clk 0:00:07.1]} 35... Bc6 {[%clk
0:00:28.1]} 36. Bd3 {[%clk 0:00:07.6]} 36... Bd7 {[%clk 0:00:22.7]} 37. Be2
{[%clk 0:00:08.5]} 37... Ke7 {[%clk 0:00:24.1]} 38. e5 {[%clk 0:00:07]} 38...
Ke6 {[%clk 0:00:21.4]} 39. exf6 {[%clk 0:00:07.2]} 39... Kxf6 {[%clk 0:00:23.3]}
40. Bd3 {[%clk 0:00:07.6]} 40... Bc6 {[%clk 0:00:17.4]} 41. h4 {[%clk
0:00:07.8]} 41... bxc4 {[%clk 0:00:08.5]} 42. g5+ {[%clk 0:00:07.3]} 42... hxg5+
{[%clk 0:00:10.4]} 43. hxg5+ {[%clk 0:00:08.1]} 43... Ke6 {[%clk 0:00:12]} 44.
Bxc4+ {[%clk 0:00:08.8]} 44... Bd5 {[%clk 0:00:10.6]} 45. Bxa6 {[%clk
0:00:05.8]} 45... Bc6 {[%clk 0:00:09.6]} 46. Bc4+ {[%clk 0:00:06.3]} 46... Ke7
{[%clk 0:00:10.7]} 47. Ke5 {[%clk 0:00:06.6]} 47... Be8 {[%clk 0:00:09.6]} 48.
a4 {[%clk 0:00:06.2]} 48... Bg6 {[%clk 0:00:10.1]} 49. a5 {[%clk 0:00:06.2]}
49... d3 {[%clk 0:00:11.1]} 50. a6 {[%clk 0:00:07.1]} 50... d2 {[%clk
0:00:11.1]} 51. Be2 {[%clk 0:00:07.9]} 51... Be8 {[%clk 0:00:06]} 52. a7 {[%clk
0:00:07.8]} 52... Bc6 {[%clk 0:00:07.1]} 53. g6 {[%clk 0:00:06.9]} 53... Bb7
{[%clk 0:00:06.3]} 54. Bd1 {[%clk 0:00:04.7]} 54... Bc6 {[%clk 0:00:06.8]} 55.
Bc2 {[%clk 0:00:04.9]} 55... Bb7 {[%clk 0:00:07.4]} 56. Bd1 {[%clk 0:00:05]}
56... Bc6 {[%clk 0:00:08.7]} 57. g7 {[%clk 0:00:05.6]} 57... Kf7 {[%clk
0:00:09.5]} 58. Kd6 {[%clk 0:00:06.9]} 58... Ba8 {[%clk 0:00:10.6]} 59. Kxc5
{[%clk 0:00:08]} 59... Kxg7 {[%clk 0:00:12.2]} 60. Kb6 {[%clk 0:00:08]} 60...
Kf6 {[%clk 0:00:13.8]} 61. b4 {[%clk 0:00:08.5]} 61... Ke5 {[%clk 0:00:14.9]}
62. Kc7 {[%clk 0:00:09.7]} 62... Kd5 {[%clk 0:00:14.8]} 63. b5 {[%clk
0:00:10.7]} 63... Kc5 {[%clk 0:00:15.6]} 64. b6 {[%clk 0:00:11.8]} 1-0

[Event "*** Biggest EVER Titled Tuesday"]
[Site "Chess.com"]
[Date "2018.04.17"]
[Round "4"]
[White "albi1999"]
[Black "StoreySniper"]
[Result "1-0"]
[WhiteElo "2395"]
[BlackElo "2233"]
[TimeControl "180+2"]
[EndTime "13:54:59 PDT"]
[Termination "albi1999 won by resignation"]

1. d4 {[%clk 0:02:46.4]} 1... g6 {[%clk 0:02:57.7]} 2. c4 {[%clk 0:02:47.2]}
2... Bg7 {[%clk 0:02:59.2]} 3. g3 {[%clk 0:02:48.7]} 3... c5 {[%clk 0:03:00.4]}
4. dxc5 {[%clk 0:02:48.4]} 4... Na6 {[%clk 0:03:00.6]} 5. Bg2 {[%clk 0:02:47.7]}
5... Nxc5 {[%clk 0:03:01.6]} 6. Nc3 {[%clk 0:02:48.3]} 6... Bxc3+ {[%clk
0:03:01.8]} 7. bxc3 {[%clk 0:02:49.2]} 7... d6 {[%clk 0:03:02.3]} 8. Nf3 {[%clk
0:02:47.2]} 8... Qa5 {[%clk 0:03:02.8]} 9. O-O {[%clk 0:02:47.8]} 9... Be6
{[%clk 0:03:01.1]} 10. Ng5 {[%clk 0:02:24.3]} 10... Nf6 {[%clk 0:02:56.7]} 11.
Nxe6 {[%clk 0:02:15.3]} 11... fxe6 {[%clk 0:02:57]} 12. Rb1 {[%clk 0:02:06.3]}
12... Rb8 {[%clk 0:02:49.4]} 13. Be3 {[%clk 0:02:01.6]} 13... b6 {[%clk
0:02:49.5]} 14. Qc2 {[%clk 0:01:53.8]} 14... Rc8 {[%clk 0:02:36.6]} 15. Bh3
{[%clk 0:01:37.4]} 15... Kf7 {[%clk 0:02:34.6]} 16. Bd4 {[%clk 0:01:33.5]} 16...
Qa4 {[%clk 0:02:28.8]} 17. Qd2 {[%clk 0:01:29.5]} 17... Qxc4 {[%clk 0:02:28.6]}
18. Rb4 {[%clk 0:01:29]} 18... Qd5 {[%clk 0:02:18.2]} 19. c4 {[%clk 0:01:26.7]}
19... Qe4 {[%clk 0:02:09.1]} 20. f3 {[%clk 0:01:25.6]} 20... Qc6 {[%clk
0:02:00.7]} 21. e4 {[%clk 0:01:16.2]} 21... Rcd8 {[%clk 0:01:56.3]} 22. Qc3
{[%clk 0:01:12.6]} 22... e5 {[%clk 0:01:56.2]} 23. Be3 {[%clk 0:01:12.8]} 23...
Ne6 {[%clk 0:01:50.2]} 24. Rbb1 {[%clk 0:01:10.1]} 24... Rc8 {[%clk 0:01:49]}
25. Rbc1 {[%clk 0:01:10.9]} 25... Rc7 {[%clk 0:01:49.8]} 26. Qb3 {[%clk
0:01:10.3]} 26... Nc5 {[%clk 0:01:49.3]} 27. Qc3 {[%clk 0:01:07.2]} 27... Nb7
{[%clk 0:01:41.2]} 28. Qb3 {[%clk 0:01:02.3]} 28... Na5 {[%clk 0:01:40.1]} 29.
Qd3 {[%clk 0:01:03.4]} 29... Nxc4 {[%clk 0:01:39.6]} 30. Rc3 {[%clk 0:01:00.8]}
30... b5 {[%clk 0:01:40.4]} 31. a4 {[%clk 0:00:58.1]} 31... a6 {[%clk
0:01:41.5]} 32. axb5 {[%clk 0:00:59]} 32... axb5 {[%clk 0:01:42]} 33. Rfc1
{[%clk 0:00:56.4]} 33... Qb7 {[%clk 0:01:32.3]} 34. Bf2 {[%clk 0:00:46.2]} 34...
Ra8 {[%clk 0:01:30.9]} 35. Rb1 {[%clk 0:00:45.5]} 35... Qa6 {[%clk 0:01:24.1]}
36. Rcb3 {[%clk 0:00:44.9]} 36... Rb8 {[%clk 0:00:52.8]} 37. g4 {[%clk
0:00:45.8]} 37... g5 {[%clk 0:00:49.4]} 38. Bf1 {[%clk 0:00:45.8]} 38... h5
{[%clk 0:00:44.3]} 39. h3 {[%clk 0:00:46.4]} 39... hxg4 {[%clk 0:00:45]} 40.
hxg4 {[%clk 0:00:48]} 40... Kg6 {[%clk 0:00:39]} 41. Rb4 {[%clk 0:00:48.2]}
41... Nd7 {[%clk 0:00:21.5]} 42. Qc3 {[%clk 0:00:44.6]} 42... Qc6 {[%clk
0:00:16.5]} 43. Bxc4 {[%clk 0:00:42.4]} 43... Rbb7 {[%clk 0:00:08.6]} 44. Qb2
{[%clk 0:00:37.5]} 44... Nc5 {[%clk 0:00:05.1]} 45. Rxb5 {[%clk 0:00:36.7]}
45... Na4 {[%clk 0:00:04.4]} 46. Qa3 {[%clk 0:00:23.6]} 46... Rxb5 {[%clk
0:00:04.8]} 47. Bxb5 {[%clk 0:00:23.5]} 47... Qc2 {[%clk 0:00:06.1]} 48. Rf1
{[%clk 0:00:21.4]} 48... Nc3 {[%clk 0:00:07]} 49. Qa8 {[%clk 0:00:18.1]} 49...
Nxb5 {[%clk 0:00:07.1]} 50. Qe8+ {[%clk 0:00:19.1]} 50... Kf6 {[%clk 0:00:08.6]}
51. Qxb5 {[%clk 0:00:21]} 51... Rc3 {[%clk 0:00:08.7]} 52. Qe8 {[%clk
0:00:21.3]} 52... Qb3 {[%clk 0:00:06.8]} 53. Qf8+ {[%clk 0:00:22]} 53... Qf7
{[%clk 0:00:08.7]} 54. Qxf7+ {[%clk 0:00:22.9]} 54... Kxf7 {[%clk 0:00:10.6]}
55. Kg2 {[%clk 0:00:24.7]} 55... Kf6 {[%clk 0:00:11.7]} 56. Rb1 {[%clk 0:00:26]}
56... Rd3 {[%clk 0:00:11.4]} 57. Rb8 {[%clk 0:00:27.3]} 57... Rd2 {[%clk
0:00:12.9]} 58. Rf8+ {[%clk 0:00:28.4]} 58... Kg7 {[%clk 0:00:14.3]} 59. Rf5
{[%clk 0:00:28.9]} 59... Kg6 {[%clk 0:00:15]} 60. Kg3 {[%clk 0:00:30.2]} 60...
Ra2 {[%clk 0:00:16]} 61. Be3 {[%clk 0:00:31.1]} 61... Ra8 {[%clk 0:00:17.2]} 62.
Rxg5+ {[%clk 0:00:32.3]} 62... Kf7 {[%clk 0:00:18.7]} 63. Rh5 {[%clk 0:00:34.2]}
63... Ke6 {[%clk 0:00:20.1]} 64. Bg5 {[%clk 0:00:35.7]} 64... Kd7 {[%clk
0:00:21.7]} 65. Rh6 {[%clk 0:00:36.9]} 65... Re8 {[%clk 0:00:21.5]} 66. Rh7
{[%clk 0:00:38.1]} 66... Ke6 {[%clk 0:00:22.9]} 67. Kh4 {[%clk 0:00:39.1]} 67...
d5 {[%clk 0:00:22.8]} 68. exd5+ {[%clk 0:00:39.7]} 68... Kxd5 {[%clk 0:00:24.1]}
69. Rxe7 {[%clk 0:00:41.1]} 69... Rh8+ {[%clk 0:00:24.2]} 70. Kg3 {[%clk
0:00:42.4]} 70... Kd4 {[%clk 0:00:25.7]} 71. Bf6 {[%clk 0:00:42.9]} 1-0

[Event "*** Biggest EVER Titled Tuesday"]
[Site "Chess.com"]
[Date "2018.04.17"]
[Round "4"]
[White "Gr3egor"]
[Black "dreamist"]
[Result "1-0"]
[WhiteElo "2340"]
[BlackElo "2498"]
[TimeControl "180+2"]
[EndTime "13:55:04 PDT"]
[Termination "Gr3egor won on time"]

1. d4 {[%clk 0:03:01.9]} 1... Nf6 {[%clk 0:02:59.8]} 2. c4 {[%clk 0:03:02.8]}
2... Nc6 {[%clk 0:02:59.7]} 3. Nc3 {[%clk 0:03:01.5]} 3... e5 {[%clk 0:03:00.6]}
4. d5 {[%clk 0:03:02.8]} 4... Ne7 {[%clk 0:03:02.1]} 5. e4 {[%clk 0:03:03.9]}
5... Ng6 {[%clk 0:03:03.6]} 6. h4 {[%clk 0:03:05.2]} 6... Bb4 {[%clk 0:03:01.7]}
7. Bd3 {[%clk 0:03:03.8]} 7... O-O {[%clk 0:02:59.9]} 8. h5 {[%clk 0:03:04.3]}
8... Nf4 {[%clk 0:03:00.9]} 9. Bxf4 {[%clk 0:03:05.1]} 9... exf4 {[%clk
0:03:01.8]} 10. Qc2 {[%clk 0:03:02.7]} 10... d6 {[%clk 0:02:55.3]} 11. O-O-O
{[%clk 0:03:03.2]} 11... Bxc3 {[%clk 0:02:49.3]} 12. Qxc3 {[%clk 0:03:04.2]}
12... h6 {[%clk 0:02:48.3]} 13. Qd2 {[%clk 0:02:58.1]} 13... b5 {[%clk
0:02:49.3]} 14. Qxf4 {[%clk 0:02:54.7]} 14... bxc4 {[%clk 0:02:48.2]} 15. Bxc4
{[%clk 0:02:55.8]} 15... Rb8 {[%clk 0:02:49.2]} 16. Nf3 {[%clk 0:02:50.3]} 16...
c6 {[%clk 0:02:43.2]} 17. dxc6 {[%clk 0:02:45.5]} 17... Qb6 {[%clk 0:02:44.1]}
18. b3 {[%clk 0:02:11.3]} 18... Qxc6 {[%clk 0:02:03.9]} 19. Rxd6 {[%clk
0:02:10]} 19... Qb7 {[%clk 0:01:43.4]} 20. Ne5 {[%clk 0:01:52.1]} 20... Be6
{[%clk 0:01:42.1]} 21. Rxe6 {[%clk 0:01:33.5]} 21... fxe6 {[%clk 0:01:40.5]} 22.
Bxe6+ {[%clk 0:01:34.1]} 22... Kh8 {[%clk 0:01:41.4]} 23. Ng6+ {[%clk
0:01:34.6]} 23... Kh7 {[%clk 0:01:42.7]} 24. Nxf8+ {[%clk 0:01:02.6]} 24... Rxf8
{[%clk 0:01:41.7]} 25. Bf5+ {[%clk 0:01:03.1]} 25... Kh8 {[%clk 0:01:40.8]} 26.
Qe3 {[%clk 0:01:03.2]} 26... Rf7 {[%clk 0:01:33.9]} 27. Kb2 {[%clk 0:01:03.2]}
27... a5 {[%clk 0:01:32.3]} 28. Rd1 {[%clk 0:01:03.6]} 28... Qb8 {[%clk
0:01:27.5]} 29. Qd4 {[%clk 0:00:57.5]} 29... Rf8 {[%clk 0:01:27.2]} 30. Qd6
{[%clk 0:00:54.6]} 30... Qa8 {[%clk 0:01:25.9]} 31. g4 {[%clk 0:00:50.8]} 31...
a4 {[%clk 0:01:19.1]} 32. e5 {[%clk 0:00:46.4]} 32... axb3 {[%clk 0:01:14.9]}
33. axb3 {[%clk 0:00:46.6]} 33... Ng8 {[%clk 0:01:11.3]} 34. Qg6 {[%clk
0:00:46.4]} 34... Rxf5 {[%clk 0:01:03.6]} 35. Qxf5 {[%clk 0:00:47.6]} 35... Qa7
{[%clk 0:01:01.5]} 36. e6 {[%clk 0:00:46.7]} 36... Qe7 {[%clk 0:00:57.9]} 37. f4
{[%clk 0:00:42.2]} 37... Qa7 {[%clk 0:00:56.1]} 38. Qc2 {[%clk 0:00:38.3]} 38...
Qb8 {[%clk 0:00:54]} 39. Qc4 {[%clk 0:00:34.7]} 39... Qb6 {[%clk 0:00:50.7]} 40.
Rd2 {[%clk 0:00:35.5]} 40... Qe3 {[%clk 0:00:49.8]} 41. Rc2 {[%clk 0:00:32.4]}
41... Ne7 {[%clk 0:00:44.1]} 42. f5 {[%clk 0:00:32.3]} 42... Qe5+ {[%clk
0:00:43.8]} 43. Qc3 {[%clk 0:00:33.3]} 43... Qf4 {[%clk 0:00:42.6]} 44. Qd2
{[%clk 0:00:25.4]} 44... Qe5+ {[%clk 0:00:39.8]} 45. Kb1 {[%clk 0:00:24]} 45...
Ng8 {[%clk 0:00:31.9]} 46. b4 {[%clk 0:00:18.6]} 46... Qe4 {[%clk 0:00:27.9]}
47. b5 {[%clk 0:00:15.4]} 47... Qh1+ {[%clk 0:00:25.4]} 48. Qc1 {[%clk
0:00:14.5]} 48... Qd5 {[%clk 0:00:22.9]} 49. Qb2 {[%clk 0:00:14.9]} 49... Qd1+
{[%clk 0:00:21]} 50. Ka2 {[%clk 0:00:15.7]} 50... Qxg4 {[%clk 0:00:22]} 51. Qb3
{[%clk 0:00:16]} 51... Qxf5 {[%clk 0:00:21.8]} 52. Rc8 {[%clk 0:00:14.1]} 52...
Qf2+ {[%clk 0:00:21]} 53. Qc2 {[%clk 0:00:13.7]} 53... Qa7+ {[%clk 0:00:20.2]}
54. Kb3 {[%clk 0:00:12.9]} 54... Qe3+ {[%clk 0:00:19.1]} 55. Qc3 {[%clk
0:00:12.4]} 55... Qxe6+ {[%clk 0:00:20]} 56. Qc4 {[%clk 0:00:13.8]} 56... Qe3+
{[%clk 0:00:20]} 57. Kb4 {[%clk 0:00:15.2]} 57... Qe1+ {[%clk 0:00:20.4]} 58.
Kc5 {[%clk 0:00:15.8]} 58... Qe7+ {[%clk 0:00:18.3]} 59. Kb6 {[%clk 0:00:16.9]}
59... Qd6+ {[%clk 0:00:18.8]} 60. Kb7 {[%clk 0:00:18]} 60... Qd7+ {[%clk
0:00:19.8]} 61. Ka8 {[%clk 0:00:18.2]} 1-0

[Event "*** Biggest EVER Titled Tuesday"]
[Site "Chess.com"]
[Date "2018.04.17"]
[Round "4"]
[White "Konavets"]
[Black "platy3"]
[Result "0-1"]
[WhiteElo "2790"]
[BlackElo "2683"]
[TimeControl "180+2"]
[EndTime "13:55:11 PDT"]
[Termination "platy3 won by resignation"]

1. Nf3 {[%clk 0:03:01.4]} 1... Nf6 {[%clk 0:03:00.4]} 2. c4 {[%clk 0:03:01.5]}
2... g6 {[%clk 0:03:01.3]} 3. Nc3 {[%clk 0:03:02.2]} 3... Bg7 {[%clk 0:03:02.9]}
4. e4 {[%clk 0:03:03.1]} 4... d6 {[%clk 0:03:04.5]} 5. d4 {[%clk 0:03:04.6]}
5... O-O {[%clk 0:03:06.1]} 6. h3 {[%clk 0:03:05.9]} 6... e5 {[%clk 0:03:07.1]}
7. d5 {[%clk 0:03:06.8]} 7... a5 {[%clk 0:03:08.5]} 8. Bg5 {[%clk 0:03:07.6]}
8... Na6 {[%clk 0:03:07]} 9. Nd2 {[%clk 0:03:06.3]} 9... Qe8 {[%clk 0:03:03.2]}
10. Be2 {[%clk 0:03:07]} 10... Nd7 {[%clk 0:03:03.7]} 11. g4 {[%clk 0:03:06.8]}
11... Ndc5 {[%clk 0:03:04.3]} 12. a3 {[%clk 0:03:05.5]} 12... Bd7 {[%clk
0:03:00.9]} 13. Rg1 {[%clk 0:03:06.3]} 13... a4 {[%clk 0:02:55]} 14. Qc2 {[%clk
0:03:06.7]} 14... c6 {[%clk 0:02:51.6]} 15. O-O-O {[%clk 0:03:00.1]} 15... cxd5
{[%clk 0:02:36.1]} 16. Nxd5 {[%clk 0:03:00.3]} 16... Ne6 {[%clk 0:02:36]} 17.
Nf6+ {[%clk 0:02:51.4]} 17... Bxf6 {[%clk 0:02:36.7]} 18. Bxf6 {[%clk
0:02:53.3]} 18... Nd4 {[%clk 0:02:37.1]} 19. Qd3 {[%clk 0:02:54.7]} 19... Qe6
{[%clk 0:02:34.6]} 20. g5 {[%clk 0:02:53.2]} 20... b5 {[%clk 0:02:29.7]} 21. Bg4
{[%clk 0:02:52.9]} 21... Qe8 {[%clk 0:02:24.2]} 22. Qg3 {[%clk 0:02:53.3]} 22...
Bxg4 {[%clk 0:02:04.3]} 23. Qxg4 {[%clk 0:02:47]} 23... h5 {[%clk 0:02:05.6]}
24. gxh6 {[%clk 0:02:45.7]} 24... Kh7 {[%clk 0:02:06.1]} 25. Nf3 {[%clk
0:02:45.9]} 25... Nxf3 {[%clk 0:02:02.6]} 26. Qxf3 {[%clk 0:02:47.8]} 26... Qe6
{[%clk 0:02:00.9]} 27. cxb5 {[%clk 0:02:45.1]} 27... Nc5 {[%clk 0:01:53]} 28.
Kb1 {[%clk 0:02:45.3]} 28... Rab8 {[%clk 0:01:46]} 29. Bg7 {[%clk 0:01:49.5]}
29... Rfd8 {[%clk 0:01:46.6]} 30. Rg5 {[%clk 0:01:50.6]} 30... Rd7 {[%clk
0:01:32.9]} 31. Rd5 {[%clk 0:00:49.2]} 31... Rxb5 {[%clk 0:01:28.1]} 32. Bxe5
{[%clk 0:00:46.8]} 32... dxe5 {[%clk 0:01:18]} 33. Rgxe5 {[%clk 0:00:45.8]}
33... Qb6 {[%clk 0:00:36.3]} 34. Qc3 {[%clk 0:00:36.9]} 34... Rb3 {[%clk
0:00:25.3]} 35. Qd4 {[%clk 0:00:15.4]} 35... Rd3 {[%clk 0:00:18.6]} 36. Qb4
{[%clk 0:00:16.6]} 36... Qxb4 {[%clk 0:00:15]} 37. axb4 {[%clk 0:00:18.5]} 37...
R3xd5 {[%clk 0:00:15]} 38. Rxd5 {[%clk 0:00:12.8]} 38... Rxd5 {[%clk 0:00:15.3]}
39. exd5 {[%clk 0:00:14.7]} 39... Nd7 {[%clk 0:00:14.1]} 40. Kc2 {[%clk
0:00:14.6]} 40... Kxh6 {[%clk 0:00:14.6]} 41. Kc3 {[%clk 0:00:15]} 41... Kg5
{[%clk 0:00:13.8]} 42. b5 {[%clk 0:00:12.7]} 42... Kf6 {[%clk 0:00:13.6]} 43.
Kb4 {[%clk 0:00:13.9]} 43... Ke5 {[%clk 0:00:13.5]} 44. Kxa4 {[%clk 0:00:15.5]}
44... Kxd5 {[%clk 0:00:14.9]} 45. Ka5 {[%clk 0:00:17]} 45... Kd6 {[%clk
0:00:11.2]} 46. Ka6 {[%clk 0:00:18.2]} 46... Kc7 {[%clk 0:00:11.7]} 47. Ka7
{[%clk 0:00:18]} 47... Nb6 {[%clk 0:00:12.2]} 48. b3 {[%clk 0:00:18.5]} 48... g5
{[%clk 0:00:10.2]} 49. Ka6 {[%clk 0:00:13.1]} 49... f6 {[%clk 0:00:09.7]} 50.
Ka7 {[%clk 0:00:13.8]} 50... f5 {[%clk 0:00:10.1]} 51. Ka6 {[%clk 0:00:13.6]}
51... Nd5 {[%clk 0:00:09.8]} 52. Ka7 {[%clk 0:00:13.6]} 52... f4 {[%clk
0:00:09.1]} 53. f3 {[%clk 0:00:14.7]} 53... Nb6 {[%clk 0:00:09]} 54. Ka6 {[%clk
0:00:15.5]} 54... Nc8 {[%clk 0:00:09.8]} 55. b4 {[%clk 0:00:08.7]} 55... Nd6
{[%clk 0:00:06.8]} 56. b6+ {[%clk 0:00:10]} 56... Kc6 {[%clk 0:00:08.3]} 57. b5+
{[%clk 0:00:08.3]} 57... Kc5 {[%clk 0:00:08.6]} 58. Ka5 {[%clk 0:00:06.9]} 58...
Nc4+ {[%clk 0:00:05.9]} 59. Ka6 {[%clk 0:00:05]} 59... Nxb6 {[%clk 0:00:07.8]}
60. Kb7 {[%clk 0:00:06.6]} 60... Kxb5 {[%clk 0:00:08.8]} 61. Kc7 {[%clk
0:00:08.1]} 61... Nc4 {[%clk 0:00:10.2]} 62. Kd7 {[%clk 0:00:09.4]} 62... Nd2
{[%clk 0:00:11.6]} 63. Ke6 {[%clk 0:00:10.8]} 63... Nxf3 {[%clk 0:00:12.9]} 64.
Kf5 {[%clk 0:00:12.6]} 64... Nh4+ {[%clk 0:00:08.7]} 0-1

[Event "*** Biggest EVER Titled Tuesday"]
[Site "Chess.com"]
[Date "2018.04.17"]
[Round "4"]
[White "nurmiTV"]
[Black "Rakhmanov_Aleksandr"]
[Result "0-1"]
[WhiteElo "2457"]
[BlackElo "2641"]
[TimeControl "180+2"]
[EndTime "13:55:15 PDT"]
[Termination "Rakhmanov_Aleksandr won by resignation"]

1. c4 {[%clk 0:02:59.3]} 1... Nf6 {[%clk 0:02:59.8]} 2. Nc3 {[%clk 0:02:59.2]}
2... g6 {[%clk 0:03:01.2]} 3. g3 {[%clk 0:02:59.8]} 3... Bg7 {[%clk 0:03:02.6]}
4. Bg2 {[%clk 0:03:01.5]} 4... O-O {[%clk 0:03:04]} 5. Nf3 {[%clk 0:03:02.9]}
5... c6 {[%clk 0:03:05]} 6. O-O {[%clk 0:03:04.5]} 6... d6 {[%clk 0:03:06.1]} 7.
Rb1 {[%clk 0:03:04.7]} 7... e5 {[%clk 0:03:01.8]} 8. d3 {[%clk 0:03:05.5]} 8...
Re8 {[%clk 0:03:00.9]} 9. b4 {[%clk 0:03:01.7]} 9... h6 {[%clk 0:03:01]} 10. b5
{[%clk 0:03:02.2]} 10... d5 {[%clk 0:03:01.7]} 11. Nd2 {[%clk 0:02:59.9]} 11...
d4 {[%clk 0:02:57.7]} 12. Nce4 {[%clk 0:02:58.3]} 12... Nxe4 {[%clk 0:02:56]}
13. Nxe4 {[%clk 0:03:00.2]} 13... f5 {[%clk 0:02:46.8]} 14. Nd2 {[%clk
0:02:55.1]} 14... c5 {[%clk 0:02:47.2]} 15. a4 {[%clk 0:02:50.6]} 15... Nd7
{[%clk 0:02:38.1]} 16. Nb3 {[%clk 0:02:47.2]} 16... a5 {[%clk 0:02:33]} 17. e3
{[%clk 0:02:39.2]} 17... Ra7 {[%clk 0:02:23.5]} 18. exd4 {[%clk 0:02:14.2]}
18... exd4 {[%clk 0:02:25.2]} 19. Re1 {[%clk 0:02:07.9]} 19... b6 {[%clk
0:02:19.5]} 20. Rb2 {[%clk 0:01:56.1]} 20... Ne5 {[%clk 0:02:12.8]} 21. Rbe2
{[%clk 0:01:30.4]} 21... Rae7 {[%clk 0:02:11]} 22. h3 {[%clk 0:01:31.8]} 22...
Kh7 {[%clk 0:02:01.7]} 23. f4 {[%clk 0:01:11]} 23... Nd7 {[%clk 0:01:54.3]} 24.
Bc6 {[%clk 0:01:09.4]} 24... Bf6 {[%clk 0:01:52.1]} 25. Nd2 {[%clk 0:01:09.3]}
25... Kg7 {[%clk 0:01:44.6]} 26. Nf3 {[%clk 0:01:08]} 26... Rxe2 {[%clk
0:01:29.7]} 27. Rxe2 {[%clk 0:01:08.3]} 27... Rxe2 {[%clk 0:01:31.3]} 28. Qxe2
{[%clk 0:01:10.2]} 28... Qe7 {[%clk 0:01:32.5]} 29. Kf2 {[%clk 0:00:54.6]} 29...
Qxe2+ {[%clk 0:01:28.8]} 30. Kxe2 {[%clk 0:00:56.5]} 30... Bd8 {[%clk
0:01:19.4]} 31. Bd2 {[%clk 0:00:55.6]} 31... Bc7 {[%clk 0:01:19.9]} 32. Be1
{[%clk 0:00:43]} 32... Nf8 {[%clk 0:01:15.6]} 33. Bd2 {[%clk 0:00:36]} 33... Ne6
{[%clk 0:01:16.3]} 34. Kf2 {[%clk 0:00:36]} 34... Kf6 {[%clk 0:01:16.6]} 35. Bd5
{[%clk 0:00:34.9]} 35... Nf8 {[%clk 0:01:12.6]} 36. Ne5 {[%clk 0:00:21.6]} 36...
g5 {[%clk 0:01:02.6]} 37. Nc6 {[%clk 0:00:20.7]} 37... Ng6 {[%clk 0:00:53.3]}
38. Kf3 {[%clk 0:00:20.5]} 38... Bd7 {[%clk 0:00:44.5]} 39. Bc1 {[%clk
0:00:20.8]} 39... Be8 {[%clk 0:00:45.3]} 40. Bd2 {[%clk 0:00:21.8]} 40... Nf8
{[%clk 0:00:33.2]} 41. g4 {[%clk 0:00:17.9]} 41... Ng6 {[%clk 0:00:27.3]} 42.
fxg5+ {[%clk 0:00:16.5]} 42... hxg5 {[%clk 0:00:23.7]} 43. gxf5 {[%clk
0:00:18.4]} 43... Kxf5 {[%clk 0:00:22]} 44. Be4+ {[%clk 0:00:19.6]} 44... Kf6
{[%clk 0:00:22.5]} 45. Kg4 {[%clk 0:00:20.2]} 45... Bf4 {[%clk 0:00:22.1]} 46.
Bxf4 {[%clk 0:00:14.1]} 46... Nxf4 {[%clk 0:00:24]} 47. h4 {[%clk 0:00:15]}
47... Bh5+ {[%clk 0:00:25.2]} 48. Kg3 {[%clk 0:00:15.3]} 48... Ne2+ {[%clk
0:00:26.5]} 49. Kh3 {[%clk 0:00:15.5]} 49... g4+ {[%clk 0:00:26.1]} 50. Kg2
{[%clk 0:00:16.1]} 50... Nc3 {[%clk 0:00:27.3]} 51. Kg3 {[%clk 0:00:11.7]} 51...
Nxa4 {[%clk 0:00:27.6]} 52. Nb8 {[%clk 0:00:10.2]} 52... Ke7 {[%clk 0:00:28.2]}
53. Nc6+ {[%clk 0:00:10.5]} 53... Kd6 {[%clk 0:00:28.5]} 54. Bf5 {[%clk
0:00:11.9]} 54... Nb2 {[%clk 0:00:22.6]} 55. Bxg4 {[%clk 0:00:13.1]} 55... Bg6
{[%clk 0:00:23.1]} 56. h5 {[%clk 0:00:11.9]} 56... Bxd3 {[%clk 0:00:24]} 57. Nd8
{[%clk 0:00:11.8]} 57... a4 {[%clk 0:00:24.5]} 58. Nf7+ {[%clk 0:00:12.1]} 58...
Ke7 {[%clk 0:00:25.9]} 59. Ne5 {[%clk 0:00:13.2]} 59... Bh7 {[%clk 0:00:27]} 60.
Nf3 {[%clk 0:00:11.3]} 60... Nxc4 {[%clk 0:00:26.8]} 61. Ng5 {[%clk 0:00:09.4]}
61... a3 {[%clk 0:00:27.1]} 62. Nxh7 {[%clk 0:00:09.3]} 62... a2 {[%clk
0:00:28.4]} 63. Ng5 {[%clk 0:00:10.8]} 63... a1=Q {[%clk 0:00:29.5]} 64. h6
{[%clk 0:00:12.2]} 64... Qg1+ {[%clk 0:00:29.4]} 65. Kh4 {[%clk 0:00:13.2]}
65... Ne5 {[%clk 0:00:30.3]} 66. Bf5 {[%clk 0:00:12.2]} 66... Nf7 {[%clk
0:00:27]} 67. Nxf7 {[%clk 0:00:09.8]} 67... Kxf7 {[%clk 0:00:28.9]} 0-1